bitfinex-derivatives/quotes_SOLF0:USTF0_20220110
["timestamp","ask_amount","ask_price","bid_price","bid_amount"]
[1641856008758,3.58299466,135.42,135.41,4.18302673]
[1641856010861,15.5449373,135.46,135.41,28.18302673]
[1641856011061,15.5449373,135.46,135.41,34.0907424]
[1641856011261,15.5449373,135.48,135.42,4.0]
[1641856011461,15.5449373,135.48,135.44,5.90644156]
[1641856011661,15.5449373,135.48,135.44,12.56244156]
[1641856012461,15.5449373,135.48,135.44,6.656]
[1641856012761,15.5449373,135.5,135.44,6.656]
[1641856012962,15.5449373,135.5,135.43,27.66479]
[1641856013160,4.0,135.49,135.41,10.09093345]
[1641856013359,4.0,135.49,135.4,27.66479]
[1641856013360,4.0,135.44,135.37,1.845]
[1641856013560,4.0,135.42,135.36,5.91003218]
[1641856013763,4.0,135.42,135.34,15.5449373]
[1641856013960,31.66479,135.43,135.34,15.5449373]
[1641856014260,4.0,135.42,135.34,15.5449373]
[1641856014760,2.68274862,135.41,135.32,27.66479]
[1641856014960,11.56974862,135.41,135.32,27.66479]
[1641856015761,2.68274862,135.4,135.32,27.66479]
[1641856018362,2.68274862,135.4,135.35,4.18433036]
[1641856019563,6.68274862,135.4,135.35,4.18433036]
[1641856020064,2.68274862,135.4,135.35,4.18433036]
[1641856020264,2.68274862,135.4,135.35,12.54133036]
[1641856020466,15.5449373,135.41,135.37,24.0]
[1641856020467,2.68274862,135.39,135.37,24.0]
[1641856020771,11.08285415,135.54,135.38,4.0]
[1641856020965,11.08285415,135.54,135.37,5.90962299]
[1641856021164,70.80744991,135.48,135.37,5.90962299]
[1641856021365,9.351,135.48,135.37,5.90962299]
[1641856021964,13.351,135.48,135.37,5.90962299]
[1641856022165,41.01579,135.48,135.39,27.66479]
[1641856022765,4.0,135.47,135.39,27.66479]
[1641856022965,4.0,135.47,135.37,27.66479]
[1641856023166,4.0,135.45,135.37,27.66479]
[1641856023369,10.041,135.45,135.37,27.66479]
[1641856023766,6.041,135.45,135.37,27.66479]
[1641856024568,4.0,135.43,135.37,27.66479]
[1641856025770,4.0,135.41,135.37,27.66479]
[1641856025971,12.057,135.41,135.37,27.66479]
[1641856026172,8.057,135.41,135.35,91.0]
[1641856026371,8.057,135.41,135.4,4.18259535]
[1641856026571,12.057,135.41,135.4,4.18259535]
[1641856027272,12.057,135.41,135.4,1e-08]
[1641856027574,12.057,135.41,135.35,91.0]
[1641856027774,4.0,135.37,135.35,91.0]
[1641856027972,9.812,135.37,135.3,27.66479]
[1641856028372,4.0,135.35,135.3,27.66479]
[1641856030777,4.0,135.34,135.3,27.66479]
[1641856030977,11.572,135.34,135.3,27.66479]
[1641856031179,11.572,135.34,135.28,118.66479]
[1641856031777,4.0,135.33,135.28,118.66479]
[1641856032477,4.0,135.33,135.31,3.31031764]
[1641856034581,4.18506541,135.34,135.31,3.31031764]
[1641856035985,4.18556158,135.32,135.29,3.31080876]
[1641856038585,4.18556158,135.32,135.29,27.31080876]
[1641856038787,4.18556158,135.32,135.29,33.22370547]
[1641856038987,33.57348255,135.4,135.29,33.22370547]
[1641856039186,27.66479,135.4,135.29,41.62670547]
[1641856039386,27.66479,135.4,135.29,37.62670547]
[1641856039586,27.66479,135.42,135.29,34.31589671]
[1641856039786,27.66479,135.42,135.29,36.16189671]
[1641856040089,27.66479,135.42,135.3,3.31025629]
[1641856040487,27.66479,135.42,135.32,27.66479]
[1641856041689,27.66479,135.42,135.32,51.66479]
[1641856041888,69.18239461,135.46,135.33,5.846]
[1641856042089,69.18239461,135.46,135.35,5.9105357]
[1641856042490,27.66479,135.46,135.37,27.66479]
[1641856042690,27.66479,135.46,135.37,34.04779]
[1641856043291,4.0,135.45,135.37,34.04779]
[1641856043491,37.57064043,135.46,135.37,34.04779]
[1641856043791,27.66479,135.46,135.37,34.04779]
[1641856044190,4.18432714,135.41,135.37,34.04779]
[1641856047493,4.18432714,135.41,135.37,27.66479]
[1641856047693,8.18432714,135.41,135.33,1.846]
[1641856047893,4.18432714,135.41,135.29,132.51760461]
[1641856048093,4.0,135.4,135.29,132.51760461]
[1641856048394,8.18308573,135.4,135.38,3.30832681]
[1641856048593,4.0,135.39,135.29,91.0]
[1641856048794,10.891,135.39,135.29,91.0]
[1641856051598,6.891,135.39,135.29,91.0]
[1641856052200,11.07148288,135.39,135.3,4.18471974]
[1641856052999,4.0,135.37,135.3,4.18471974]
[1641856053498,85.43498288,135.39,135.3,4.18471974]
[1641856053702,4.0,135.38,135.3,4.18471974]
[1641856054002,4.0,135.37,135.3,4.18471974]
[1641856055802,4.0,135.37,135.29,91.0]
[1641856056203,4.0,135.37,135.31,4.18463387]
[1641856057708,8.180397,135.38,135.31,4.18463387]
[1641856058111,4.180397,135.38,135.31,4.18463387]
[1641856058409,8.180397,135.38,135.31,4.18463387]
[1641856058611,4.180397,135.38,135.31,4.18463387]
[1641856059012,8.180397,135.38,135.31,4.18463387]
[1641856059811,4.0,135.38,135.29,91.0]
[1641856060013,4.0,135.37,135.29,91.0]
[1641856060212,4.18497235,135.36,135.32,3.49445297]
[1641856063614,4.0,135.37,135.29,91.0]
[1641856063813,4.18500666,135.36,135.3,3.49446501]
[1641856065314,4.0,135.35,135.3,3.49446501]
[1641856065516,12.366,135.35,135.3,3.49446501]
[1641856066614,8.366,135.35,135.3,3.49446501]
[1641856067617,8.366,135.35,135.27,27.66479]
[1641856067815,12.55103358,135.35,135.31,3.49449171]
[1641856068015,4.18503358,135.35,135.31,3.49449171]
[1641856071517,4.18544297,135.34,135.29,12.76305566]
[1641856072119,4.18544297,135.34,135.3,2.51952099]
[1641856072819,4.18544297,135.34,135.3,26.51952099]
[1641856073020,4.18544297,135.34,135.3,32.43191947]
[1641856073519,15.58763461,135.4,135.31,27.66479]
[1641856074319,15.58763461,135.4,135.33,24.0]
[1641856074519,15.58763461,135.4,135.33,38.25024581]
[1641856074720,15.58763461,135.44,135.33,38.25024581]
[1641856075524,15.58763461,135.44,135.34,2.51952099]
[1641856075724,2.6845598,135.44,135.34,2.51952099]
[1641856077423,2.6845598,135.44,135.34,30.18431099]
[1641856078425,3.9164217,135.43,135.35,2.51952099]
[1641856078825,4.0,135.42,135.35,2.51952099]
[1641856079026,10.439,135.42,135.35,2.51952099]
[1641856079425,38.10379,135.42,135.35,2.51952099]
[1641856079625,4.0,135.41,135.35,6.70224743]
[1641856079824,4.0,135.4,135.35,6.70224743]
[1641856080025,34.10379,135.42,135.35,4.18272644]
[1641856080026,8.59196932,135.41,135.35,4.18272644]
[1641856080225,4.0,135.39,135.35,4.18272644]
[1641856080428,10.411,135.39,135.35,4.18272644]
[1641856080829,10.411,135.39,135.33,8.339]
[1641856081132,4.0,135.36,135.33,8.339]
[1641856081329,12.341,135.36,135.33,8.339]
[1641856081529,40.00579,135.36,135.33,8.339]
[1641856085940,36.00579,135.36,135.33,8.339]
[1641856086140,4.18520299,135.35,135.33,8.339]
[1641856089641,38.27779,135.36,135.26,15.58763461]
[1641856089841,4.0,135.35,135.26,15.58763461]
[1641856090042,4.03836958,135.34,135.26,15.58763461]
[1641856091048,4.03836958,135.34,135.29,2.51869171]
[1641856092649,4.03836958,135.34,135.25,43.25242461]
[1641856093451,4.0,135.35,135.25,27.66479]
[1641856093650,4.0,135.34,135.25,27.66479]
[1641856093850,4.0,135.32,135.25,33.57964971]
[1641856094251,9.91217774,135.32,135.25,27.66479]
[1641856094451,4.0,135.31,135.25,27.66479]
[1641856094654,8.114,135.31,135.25,27.66479]
[1641856097857,39.96450679,135.31,135.25,27.66479]
[1641856098959,39.96450679,135.31,135.26,3.49584334]
[1641856099360,12.29971679,135.31,135.26,3.49584334]
[1641856100263,12.29971679,135.31,135.26,10.51084334]
[1641856100462,15.58763461,135.36,135.28,4.0]
[1641856100762,27.66479,135.37,135.28,9.91354857]
[1641856101163,15.58763461,135.38,135.28,9.91354857]
[1641856101566,31.66479,135.39,135.29,2.51663601]
[1641856101762,31.66479,135.39,135.29,10.24463601]
[1641856101963,31.66479,135.39,135.3,27.66479]
[1641856102365,31.66479,135.39,135.3,30.18142601]
[1641856103164,31.66479,135.39,135.31,2.51663601]
[1641856106869,31.66479,135.39,135.31,6.01015719]
[1641856107370,4.0,135.38,135.31,6.01015719]
[1641856107571,4.0,135.38,135.32,2.51663601]
[1641856108173,4.0,135.37,135.32,2.51663601]
[1641856109575,5.90940675,135.38,135.32,2.51663601]
[1641856109773,4.0,135.4,135.32,2.51663601]
[1641856110178,19.58763461,135.41,135.32,2.51663601]
[1641856110574,7.08894786,135.43,135.34,4.0]
[1641856110777,43.25242461,135.45,135.34,11.521]
[1641856110975,43.25242461,135.45,135.4,4.0]
[1641856111175,15.58763461,135.45,135.4,11.14]
[1641856111375,15.58763461,135.45,135.4,7.14]
[1641856111776,15.58763461,135.49,135.4,7.14]
[1641856112179,15.58763461,135.49,135.45,27.66479]
[1641856112382,15.58763461,135.49,135.45,34.50479]
[1641856112880,18.26507037,135.51,135.45,6.84]
[1641856113679,2.67743576,135.51,135.45,6.84]
[1641856115282,4.0,135.46,135.38,29.50979]
[1641856115482,4.0,135.48,135.38,27.66479]
[1641856115681,4.0,135.5,135.38,27.66479]
[1641856116082,27.66479,135.49,135.38,27.66479]
[1641856116282,30.34222576,135.49,135.34,41.38979]
[1641856116483,30.34222576,135.49,135.34,39.54479]
[1641856117083,31.66479,135.49,135.36,2.50699935]
[1641856117283,4.0,135.47,135.36,2.50699935]
[1641856117484,4.0,135.42,135.36,2.50699935]
[1641856117686,11.343,135.42,135.34,27.66479]
[1641856117884,7.343,135.42,135.3,15.58763461]
[1641856118085,7.343,135.42,135.31,27.66479]
[1641856118385,7.343,135.42,135.33,4.0]
[1641856119386,7.343,135.42,135.34,2.50692374]
[1641856119588,7.343,135.42,135.34,4.35292374]
[1641856119787,7.343,135.42,135.34,14.26371101]
[1641856119989,7.343,135.42,135.35,4.0]
[1641856120189,7.343,135.42,135.36,33.57467329]
[1641856120592,7.343,135.42,135.37,4.0]
[1641856120791,7.343,135.42,135.37,1.846]
[1641856121491,3.9152256,135.41,135.37,1.846]
[1641856121691,3.9152256,135.41,135.36,27.66479]
[1641856125092,7.343,135.42,135.36,27.66479]
[1641856126695,7.343,135.42,135.37,5.90965668]
[1641856127095,7.343,135.42,135.37,7.75565668]
[1641856127294,4.0,135.51,135.37,7.75565668]
[1641856127493,15.58763461,135.52,135.37,15.09265668]
[1641856127695,15.58763461,135.52,135.37,19.09265668]
[1641856127996,18.26191347,135.52,135.37,19.09265668]
[1641856128195,27.66479,135.5,135.39,27.66479]
[1641856130297,9.90513728,135.48,135.39,33.57357422]
[1641856130500,5.90513728,135.48,135.39,33.57357422]
[1641856130697,5.90513728,135.48,135.39,27.66479]
[1641856131703,9.90513728,135.48,135.39,27.66479]
[1641856132300,27.66479,135.46,135.39,27.66479]
[1641856133100,31.66479,135.46,135.39,27.66479]
[1641856133801,27.66479,135.46,135.39,27.66479]
[1641856134000,27.66479,135.46,135.4,4.18127095]
[1641856134502,2.68135102,135.45,135.4,4.18127095]
[1641856137305,9.90674232,135.44,135.4,4.18127095]
[1641856137505,11.75274232,135.44,135.4,4.18127095]
[1641856137706,4.0,135.43,135.39,27.66479]
[1641856137906,4.0,135.43,135.41,4.18207619]
[1641856138306,39.41753232,135.44,135.41,4.18207619]
[1641856138606,2.68135102,135.42,135.41,4.18207619]
[1641856138805,10.59935102,135.42,135.41,4.18207619]
[1641856140007,10.59935102,135.42,135.39,27.66479]
[1641856140207,2.68135102,135.42,135.39,27.66479]
[1641856140409,2.68135102,135.42,135.39,31.66479]
[1641856141008,19.50185192,135.44,135.39,31.66479]
[1641856141208,3.91421731,135.44,135.4,2.5223509]
[1641856142211,3.91421731,135.44,135.42,4.0]
[1641856142411,15.58763461,135.49,135.42,6.03]
[1641856142612,15.58763461,135.49,135.42,10.03]
[1641856143014,15.58763461,135.49,135.43,2.5223509]
[1641856143211,27.66479,135.54,135.43,2.5223509]
[1641856143212,15.58763461,135.51,135.43,2.5223509]
[1641856144012,18.27239972,135.53,135.43,2.5223509]
[1641856144212,4.0,135.5,135.43,2.5223509]
[1641856144615,1.845,135.52,135.43,2.5223509]
[1641856144912,4.0,135.46,135.43,2.5223509]
[1641856145113,4.0,135.5,135.43,2.5223509]
[1641856145313,1.845,135.49,135.43,2.5223509]
[1641856145513,1.845,135.49,135.43,5.09e-05]
[1641856145714,15.58763461,135.46,135.42,27.66479]
[1641856146315,19.58763461,135.46,135.42,27.66479]
[1641856146515,15.58763461,135.46,135.42,27.66479]
[1641856146715,15.58763461,135.46,135.43,4.18005364]
[1641856147218,19.58763461,135.46,135.43,4.18005364]
[1641856147617,15.58763461,135.46,135.43,4.18005364]
[1641856147917,4.0,135.45,135.43,4.18005364]
[1641856148116,4.0,135.45,135.39,34.16079]
[1641856148320,1.846,135.44,135.39,34.16079]
[1641856148518,5.846,135.45,135.39,34.16079]
[1641856148721,15.58763461,135.44,135.39,34.16079]
[1641856148919,19.58763461,135.44,135.39,34.16079]
[1641856149319,4.0,135.43,135.39,34.16079]
[1641856150723,19.58763461,135.43,135.39,34.16079]
[1641856150923,15.58763461,135.43,135.39,34.16079]
[1641856151623,15.58763461,135.44,135.39,34.16079]
[1641856151824,4.0,135.4,135.39,34.16079]
[1641856152124,8.573,135.4,135.32,15.58763461]
[1641856152331,27.66479,135.35,135.32,15.58763461]
[1641856152925,27.66479,135.35,135.29,15.58763461]
[1641856154727,27.66479,135.35,135.28,25.77676871]
[1641856156230,27.66479,135.35,135.27,106.58763461]
[1641856157432,27.66479,135.35,135.3,4.0]
[1641856157634,5.9086376,135.4,135.3,4.0]
[1641856157833,5.9086376,135.4,135.33,4.0]
[1641856158033,17.43463461,135.42,135.34,4.0]
[1641856158334,15.58763461,135.42,135.34,4.0]
[1641856158633,27.66479,135.43,135.34,9.91073195]
[1641856160437,27.66479,135.43,135.36,4.0]
[1641856160635,27.66479,135.43,135.38,4.0]
[1641856160834,27.66479,135.43,135.38,5.9090459]
[1641856161038,15.58763461,135.47,135.42,4.0]
[1641856161239,15.58763461,135.47,135.43,4.0]
[1641856161637,15.58763461,135.47,135.45,4.0]
[1641856161838,15.58763461,135.52,135.45,6.815]
[1641856163138,27.66479,135.54,135.45,10.815]
[1641856163740,27.66479,135.54,135.46,4.0]
[1641856164538,27.66479,135.54,135.45,6.815]
[1641856164739,27.66479,135.54,135.5,4.0]
[1641856164940,15.58763461,135.57,135.52,4.0]
[1641856165142,15.58763461,135.58,135.52,4.0]
[1641856165539,15.58763461,135.58,135.5,6.178]
[1641856165540,15.58763461,135.58,135.53,4.0]
[1641856165740,15.58763461,135.58,135.53,6.435]
[1641856166138,15.58763461,135.58,135.5,6.178]
[1641856166139,19.58763461,135.58,135.48,1.844]
[1641856166339,24.08363461,135.58,135.47,9.90507854]
[1641856166539,27.66479,135.56,135.47,9.90507854]
[1641856166740,27.66479,135.56,135.47,5.90507854]
[1641856166941,27.66479,135.56,135.48,4.0]
[1641856167141,27.66479,135.56,135.49,4.0]
[1641856167340,27.66479,135.56,135.46,3.43473775]
[1641856167543,27.66479,135.56,135.48,4.0]
[1641856167742,27.66479,135.56,135.46,3.43473775]
[1641856169143,27.66479,135.56,135.46,5.27873775]
[1641856169843,27.66479,135.56,135.46,1.844]
[1641856170043,27.66479,135.56,135.46,5.844]
[1641856170243,27.66479,135.56,135.48,3.43376795]
[1641856173549,4.0,135.55,135.48,3.43376795]
[1641856173748,10.08,135.55,135.48,3.43376795]
[1641856173950,6.08,135.55,135.43,1.844]
[1641856174151,4.0,135.53,135.4,47.25242461]
[1641856174448,27.66479,135.5,135.49,3.43398411]
[1641856178352,27.66479,135.5,135.43,4.0]
[1641856178750,27.66479,135.5,135.44,7.75165076]
[1641856178951,27.66479,135.5,135.44,16.67665076]
[1641856179150,27.66479,135.5,135.44,20.67665076]
[1641856179351,27.66479,135.5,135.44,18.83165076]
[1641856179550,27.66479,135.54,135.45,1.845]
[1641856180151,27.66479,135.54,135.45,5.845]
[1641856180353,27.66479,135.54,135.45,1.845]
[1641856180852,27.66479,135.54,135.44,5.90665076]
[1641856181052,35.33979,135.54,135.44,5.90665076]
[1641856181254,4.18029576,135.5,135.44,5.90665076]
[1641856182152,4.18029576,135.5,135.44,9.34160466]
[1641856182452,4.18029576,135.5,135.45,27.66479]
[1641856185054,27.66479,135.54,135.45,27.66479]
[1641856185354,4.17992076,135.49,135.45,27.66479]
[1641856186157,4.17992076,135.49,135.46,3.43496903]
[1641856189057,15.58763461,135.53,135.46,3.43496903]
[1641856189858,15.58763461,135.53,135.45,27.66479]
[1641856190058,4.17998589,135.48,135.45,27.66479]
[1641856190558,4.17998589,135.48,135.47,3.43501239]
[1641856193661,19.76773512,135.52,135.47,3.43501239]
[1641856194061,19.76773512,135.52,135.46,3.43512788]
[1641856194864,2.68711469,135.51,135.46,3.43512788]
[1641856196066,2.68711469,135.51,135.46,7.43512788]
[1641856196267,2.68711469,135.51,135.46,3.43512788]
[1641856196568,2.68711469,135.51,135.5,4.0]
[1641856196768,2.68711469,135.51,135.5,10.868]
[1641856197170,4.18010051,135.52,135.5,10.868]
[1641856197370,15.58763461,135.55,135.5,10.868]
[1641856197771,4.18021607,135.51,135.5,10.868]
[1641856198772,4.18021607,135.51,135.5,6.868]
[1641856200272,4.18021607,135.51,135.5,0.0001]
[1641856200472,4.18021607,135.51,135.47,5.27921457]
[1641856200774,4.18021607,135.51,135.47,3.43521457]
[1641856201372,51.68442461,135.55,135.47,3.43521457]
[1641856201573,4.17869074,135.54,135.47,3.43521457]
[1641856201775,4.17869074,135.54,135.49,4.0]
[1641856201973,4.17869074,135.54,135.5,3.43372659]
[1641856203774,4.17869074,135.54,135.5,11.07072659]
[1641856203976,9.074e-05,135.54,135.53,4.0]
[1641856204175,9.074e-05,135.54,135.53,13.039]
[1641856204976,27.66479,135.58,135.53,9.039]
[1641856206177,27.66479,135.58,135.52,5.90307725]
[1641856206476,4.0,135.57,135.51,3.43351606]
[1641856207582,2.67979654,135.56,135.51,3.43351606]
[1641856208384,18.26743115,135.57,135.51,3.43351606]
[1641856208985,22.26743115,135.57,135.51,3.43351606]
[1641856209185,4.0,135.56,135.51,3.43351606]
[1641856209387,19.58763461,135.56,135.51,3.43351606]
[1641856209788,19.58763461,135.56,135.47,27.66479]
[1641856209988,15.58763461,135.56,135.54,3.43261308]
[1641856210188,4.0,135.55,135.47,27.66479]
[1641856210490,4.0,135.53,135.47,27.66479]
[1641856211088,2.67979654,135.52,135.47,27.66479]
[1641856212890,2.67979654,135.53,135.47,27.66479]
[1641856214992,31.66479,135.54,135.48,4.18017337]
[1641856215394,4.0,135.51,135.48,7.337e-05]
[1641856215595,4.0,135.49,135.48,7.337e-05]
[1641856215795,4.0,135.49,135.43,15.58763461]
[1641856216394,4.0,135.49,135.4,2.5159307]
[1641856216895,27.66479,135.47,135.4,2.5159307]
[1641856218100,27.66479,135.47,135.43,4.0]
[1641856218301,27.66479,135.47,135.44,4.0]
[1641856218602,27.66479,135.49,135.44,4.0]
[1641856220704,4.18066372,135.46,135.45,2.51348495]
[1641856221405,4.18066372,135.46,135.44,4.0]
[1641856224207,27.66479,135.49,135.44,4.0]
[1641856224509,27.66479,135.49,135.44,5.845]
[1641856225407,27.66479,135.49,135.43,9.90701631]
[1641856225607,27.66479,135.49,135.43,5.90701631]
[1641856226611,27.66479,135.49,135.44,2.51525129]
[1641856227313,4.0,135.48,135.42,25.75879299]
[1641856227512,4.0,135.48,135.39,25.75879299]
[1641856227912,27.66479,135.49,135.39,25.75879299]
[1641856228312,31.66479,135.49,135.39,15.58763461]
[1641856228516,31.66479,135.49,135.38,2.51580702]
[1641856229013,27.66479,135.45,135.38,2.51580702]
[1641856230318,31.66479,135.45,135.38,2.51580702]
[1641856230520,33.57142384,135.45,135.38,2.51580702]
[1641856230719,27.66479,135.45,135.38,2.51580702]
[1641856231117,55.32958,135.45,135.38,2.51580702]
[1641856234124,4.18137048,135.44,135.39,2.71512709]
[1641856237127,4.18137048,135.44,135.4,2.51830139]
[1641856237628,31.66479,135.45,135.37,91.0]
[1641856238029,31.66479,135.45,135.4,2.71504699]
[1641856238528,27.66479,135.45,135.4,2.71504699]
[1641856239029,27.66479,135.45,135.41,2.51781803]
[1641856239228,27.66479,135.45,135.41,10.65781803]
[1641856239429,4.18143099,135.43,135.41,10.65781803]
[1641856240528,27.66479,135.48,135.41,10.65781803]
[1641856240529,27.66479,135.48,135.42,2.51781803]
[1641856244130,27.66479,135.48,135.44,4.0]
[1641856244429,27.66479,135.51,135.44,4.0]
[1641856244430,27.66479,135.51,135.44,8.46]
[1641856244633,27.66479,135.51,135.44,14.36628526]
[1641856244829,15.58763461,135.52,135.44,14.36628526]
[1641856245130,15.58763461,135.53,135.45,2.51781803]
[1641856245731,27.66479,135.52,135.45,2.51781803]
[1641856245932,4.18017124,135.47,135.45,2.51781803]
[1641856248535,27.66479,135.52,135.45,2.51781803]
[1641856249141,27.66479,135.52,135.46,15.58763461]
[1641856249738,27.66479,135.52,135.46,18.34306679]
[1641856250037,27.66479,135.52,135.46,2.75543218]
[1641856250738,27.66479,135.52,135.47,2.51781803]
[1641856250939,27.66479,135.52,135.47,9.56981803]
[1641856251538,27.66479,135.52,135.48,2.51781803]
[1641856253439,31.66479,135.54,135.48,2.51781803]
[1641856253840,59.32958,135.54,135.48,2.51781803]
[1641856254839,59.32958,135.54,135.47,11.23112028]
[1641856257245,4.17884425,135.53,135.47,11.23112028]
[1641856260048,27.66479,135.52,135.47,11.23112028]
[1641856260245,31.84388267,135.52,135.47,11.23112028]
[1641856260947,4.17909267,135.52,135.47,11.23112028]
[1641856262147,4.17909267,135.52,135.48,9.90476347]
[1641856262348,15.58763461,135.58,135.5,4.0]
[1641856262549,15.58763461,135.58,135.52,9.90308886]
[1641856262747,15.58763461,135.58,135.53,7.74634356]
[1641856262949,15.58763461,135.58,135.53,19.40234356]
[1641856263148,15.58763461,135.58,135.54,5.90198534]
[1641856263347,4.0,135.63,135.54,5.90198534]
[1641856263548,4.0,135.63,135.54,7.74498534]
[1641856264048,27.66479,135.6,135.54,7.74498534]
[1641856264249,27.66479,135.6,135.54,5.90198534]
[1641856266952,27.66479,135.6,135.53,1.844]
[1641856267152,27.66479,135.6,135.51,22.32159386]
[1641856267954,27.66479,135.6,135.53,4.0]
[1641856268154,27.66479,135.6,135.54,5.844]
[1641856268554,27.66479,135.6,135.55,4.1766201]
[1641856269553,3.3476898,135.62,135.55,4.1766201]
[1641856270254,27.66479,135.63,135.55,4.1766201]
[1641856270653,3.34775555,135.59,135.55,4.1766201]
[1641856271054,3.34775555,135.59,135.55,8.1766201]
[1641856271258,3.34775555,135.59,135.56,5.90137175]
[1641856271458,3.34775555,135.59,135.56,7.74437175]
[1641856271658,3.34775555,135.59,135.56,1.843]
[1641856271856,3.34775555,135.59,135.55,4.1766201]
[1641856272055,3.34775555,135.59,135.53,7.08309337]
[1641856272255,3.34775555,135.59,135.54,4.0]
[1641856272856,3.34775555,135.59,135.56,4.17606824]
[1641856274461,27.66479,135.63,135.56,4.17606824]
[1641856276363,27.66479,135.63,135.54,19.41237839]
[1641856276763,27.66479,135.63,135.57,4.1765028]
[1641856278265,27.66479,135.63,135.57,12.9015028]
[1641856278564,2.51185006,135.62,135.57,12.9015028]
[1641856280566,2.51185006,135.62,135.57,8.725]
[1641856280965,2.51185006,135.62,135.58,4.17678959]
[1641856282367,31.66479,135.63,135.58,4.17678959]
[1641856282871,31.66479,135.63,135.5,34.66722416]
[1641856283269,4.0,135.61,135.5,34.66722416]
[1641856283469,11.443,135.61,135.5,32.82422416]
[1641856284168,27.66479,135.6,135.5,32.82422416]
[1641856284371,27.66479,135.6,135.49,20.0]
[1641856284372,31.66479,135.6,135.51,2.51205027]
[1641856284972,31.66479,135.6,135.59,4.17698145]
[1641856285173,31.66479,135.6,135.51,2.51205027]
[1641856285373,31.66479,135.6,135.49,2.51205027]
[1641856285774,4.0,135.59,135.49,2.51205027]
[1641856285975,31.66479,135.6,135.49,2.51205027]
[1641856286275,67.217,135.59,135.49,2.51205027]
[1641856287175,67.217,135.59,135.48,24.00434373]
[1641856287675,67.217,135.59,135.49,2.51205027]
[1641856288376,70.98346678,135.59,135.49,8.41654243]
[1641856288575,70.98346678,135.59,135.49,15.24554243]
[1641856288977,70.98346678,135.59,135.49,19.24554243]
[1641856289178,70.98346678,135.59,135.5,5.90403595]
[1641856289376,70.98346678,135.59,135.5,9.90403595]
[1641856289578,70.98346678,135.59,135.5,28.00372083]
[1641856289777,70.98346678,135.59,135.5,24.00372083]
[1641856289978,70.98346678,135.59,135.5,27.59463891]
[1641856290280,70.98346678,135.59,135.51,2.51205027]
[1641856292283,67.217,135.59,135.51,2.51205027]
[1641856292485,3.76590512,135.58,135.51,2.51205027]
[1641856293785,3.76590512,135.58,135.51,6.68960353]
[1641856294387,3.76590512,135.58,135.52,2.51205027]
[1641856294587,3.76590512,135.58,135.52,8.57805027]
[1641856295086,3.76590512,135.58,135.53,2.51205027]
[1641856296088,71.217,135.59,135.53,2.51205027]
[1641856296388,3.92907825,135.57,135.53,2.51205027]
[1641856296791,3.92907825,135.57,135.52,2.51205027]
[1641856297393,3.92907825,135.57,135.52,6.10257728]
[1641856298493,3.92907825,135.57,135.52,3.59052701]
[1641856299094,3.92907825,135.57,135.52,7.59052701]
[1641856299294,3.92907825,135.57,135.52,13.49331808]
[1641856299895,3.92907825,135.57,135.53,2.51888583]
[1641856300095,4.17790813,135.58,135.53,2.51888583]
[1641856300794,4.17790813,135.58,135.53,8.42125155]
[1641856300996,4.17790813,135.58,135.53,12.01218258]
[1641856301198,4.17790813,135.58,135.54,5.90195737]
[1641856301395,4.17790813,135.58,135.54,10.2648432]
[1641856301596,4.17790813,135.58,135.55,4.0]
[1641856301796,4.17790813,135.58,135.54,10.2648432]
[1641856302499,4.17790813,135.58,135.56,2.51888583]
[1641856303398,4.17790813,135.58,135.55,2.51888583]
[1641856303599,27.66479,135.6,135.55,2.51888583]
[1641856307300,4.17693535,135.59,135.55,2.51888583]
[1641856308302,4.17693535,135.59,135.56,3.59016218]
[1641856310807,27.66479,135.6,135.56,3.59016218]
[1641856311006,4.17745288,135.58,135.56,3.59016218]
[1641856311809,4.17745288,135.58,135.5,15.58763461]
[1641856312209,4.17745288,135.58,135.56,3.59047832]
[1641856314112,27.66479,135.6,135.56,3.59047832]
[1641856314311,43.25242461,135.62,135.56,12.54347832]
[1641856314511,43.25242461,135.62,135.56,18.44468991]